fUSD/lending_fUSD_20250504
["ID","MTS","AMOUNT","RATE_DAILY","PERIOD"]
[359811447,1746358062072,-266.06,0.00019753,2]
[359811448,1746358062100,-450.0,0.00019753,2]
[359811449,1746358062127,-450.0,0.00019753,2]
[359811450,1746358062154,-450.0,0.00019753,2]
[359811451,1746358062181,-450.0,0.00019753,2]
[359811452,1746358062209,-450.0,0.00019753,2]
[359811453,1746358062237,-450.0,0.00019753,2]
[359811454,1746358062264,-727.75,0.00019753,2]
[359811455,1746358062291,-450.0,0.00019753,2]
[359811456,1746358062318,-450.0,0.00019753,2]
[359811457,1746358062345,-357.8,0.00019753,2]
[359811458,1746358062372,-450.0,0.00019753,2]
[359811459,1746358062400,-450.0,0.00019753,2]
[359811460,1746358062427,-503.13,0.00019753,2]
[359811461,1746358062454,-450.0,0.00019753,2]
[359811462,1746358062480,-450.0,0.00019753,2]
[359811463,1746358062507,-450.0,0.00019753,2]
[359811464,1746358062534,-270.59,0.00019753,2]
[359811465,1746358062562,-450.0,0.00019753,2]
[359811466,1746358062590,-450.0,0.00019753,2]
[359811467,1746358062618,-2263.33,0.00019753,2]
[359811468,1746358062646,-581.97369639,0.00019753,2]
[359811469,1746358062674,-450.0,0.00019753,2]
[359811470,1746358062705,-450.0,0.00019753,2]
[359811471,1746358062732,-1348.23,0.00019753,2]
[359811472,1746358062760,-450.0,0.00019753,2]
[359811473,1746358062788,-450.0,0.00019753,2]
[359811474,1746358062815,-644.29,0.00019753,2]
[359811475,1746358062844,-450.0,0.00019753,2]
[359811476,1746358062872,-254.73,0.00019753,2]
[359811477,1746358062903,-450.0,0.00019753,2]
[359811478,1746358062933,-450.0,0.00019753,2]
[359811479,1746358062962,-175.41,0.00019753,2]
[359811480,1746358063124,1065.233797,0.00019428,2]
[359811481,1746358063141,-1310.44,0.00019753,2]
[359811482,1746358063151,-450.0,0.00019753,2]
[359811483,1746358063160,-48.11037639,0.00019753,2]
[359811484,1746358063172,-401.88962361,0.00019753,2]
[359811485,1746358063181,-64.63124446,0.00019753,2]
[359811486,1746358063193,-429.70875554,0.00019753,2]
[359811487,1746358063203,-20.29124446,0.00019753,2]
[359811488,1746358063214,-399.75363239,0.00019753,2]
[359811489,1746358063226,-29.95512315,0.00019753,2]
[359811490,1746358063235,-420.04487685,0.00019753,2]
[359811491,1746358063247,-29.95512315,0.00019753,2]
[359811492,1746358063256,-420.04487685,0.00019753,2]
[359811493,1746358063268,-29.95512315,0.00019753,2]
[359811494,1746358063278,-420.04487685,0.00019753,2]
[359811495,1746358063289,-450.0,0.00019753,2]
[359811496,1746358063300,-450.0,0.00019753,2]
[359811497,1746358063312,-450.0,0.00019753,2]
[359811498,1746358063328,-450.0,0.00019753,2]
[359811499,1746358063339,-161.09512315,0.00019753,2]
[359811500,1746358063349,-450.0,0.00019753,2]
[359811501,1746358063359,-716.18,0.00019753,2]
[359811502,1746358063369,-20.95487685,0.00019753,2]
[359811503,1746358063384,-429.04512315,0.00019753,2]
[359811504,1746358063394,-20.95487685,0.00019753,2]
[359811505,1746358063406,-450.0,0.00019753,2]
[359811506,1746358063417,-282.15512315,0.00019753,2]
[359811507,1746358063427,-212.23487685,0.00019753,2]
[359811508,1746358063438,-450.0,0.00019753,2]
[359811509,1746358063450,-311.41512315,0.00019753,2]
[359811510,1746358063459,-138.58487685,0.00019753,2]
[359811511,1746358063471,-450.0,0.00019753,2]
[359811512,1746358063483,-644.29,0.00019753,2]
[359811513,1746358063494,-450.0,0.00019753,2]
[359811514,1746358063509,-450.0,0.00019753,2]
[359811515,1746358063521,-347.98512315,0.00019753,2]
[359811516,1746358063531,-102.01487685,0.00019753,2]
[359811517,1746358063543,-65.77512315,0.00019753,2]
[359811518,1746358063552,-384.22487685,0.00019753,2]
[359811519,1746358063564,-15.38512315,0.00019753,2]
[359811520,1746358063573,-434.61487685,0.00019753,2]
[359811521,1746358063585,-15.38512315,0.00019753,2]
[359811522,1746358063594,-434.61487685,0.00019753,2]
[359811523,1746358063605,-678.34,0.00019753,2]
[359811524,1746358063621,-450.0,0.00019753,2]
[359811525,1746358063633,-245.80512315,0.00019753,2]
[359811526,1746358063642,-204.19487685,0.00019753,2]
[359811527,1746358063660,-35.12512315,0.00019753,2]
[359811528,1746358063670,-238.13,0.00019753,2]
[359811529,1746358063680,-176.74487685,0.00019753,2]
[359811530,1746358063691,-273.25512315,0.00019753,2]
[359811531,1746358063701,-226.74487685,0.00019753,2]
[359811532,1746358063722,-36.41512315,0.00019753,2]
[359811533,1746358063731,-461.38487685,0.00019753,2]
[359811534,1746358063743,-319.34512315,0.00019753,2]
[359811535,1746358063753,-130.65487685,0.00019753,2]
[359811536,1746358063764,-54.96512315,0.00019753,2]
[359811537,1746358063773,-395.03487685,0.00019753,2]
[359811538,1746358063785,-54.96512315,0.00019753,2]
[359811539,1746358063794,-450.0,0.00019753,2]
[359811540,1746358063804,-582.84,0.00019753,2]
[359811541,1746358063813,-222.63487685,0.00019753,2]
[359811542,1746358063825,-227.36512315,0.00019753,2]
[359811543,1746358063834,-222.63487685,0.00019753,2]
[359811544,1746358063846,-450.0,0.00019753,2]
[359811545,1746358063857,-253.02512315,0.00019753,2]
[359811546,1746358063867,-256.37487685,0.00019753,2]
[359811547,1746358063885,-193.62512315,0.00019753,2]
[359811548,1746358063895,-300.71487685,0.00019753,2]
[359811549,1746358063907,-149.28512315,0.00019753,2]
[359811550,1746358063917,-300.71487685,0.00019753,2]
[359811551,1746358063928,-149.28512315,0.00019753,2]
[359811552,1746358063938,-300.71487685,0.00019753,2]
[359811553,1746358063950,-450.0,0.00019753,2]
[359811554,1746358063964,-450.0,0.00019753,2]
[359811555,1746358063975,-450.0,0.00019753,2]
[359811556,1746358063987,-369.99512315,0.00019753,2]
[359811557,1746358063997,-186.65,0.00019753,2]
[359811558,1746358064007,-450.0,0.00019753,2]
[359811559,1746358064017,-450.0,0.00019753,2]
[359811560,1746358064026,-450.0,0.00019753,2]
[359811561,1746358064036,-474.49487685,0.00019753,2]
[359811562,1746358064048,-450.0,0.00019753,2]
[359811563,1746358064063,-450.0,0.00019753,2]
[359811564,1746358064074,-450.0,0.00019753,2]
[359811565,1746358064085,-450.0,0.00019753,2]
[359811566,1746358064096,-716.18,0.00019753,2]
[359811567,1746358064107,-450.0,0.00019753,2]
[359811568,1746358064119,-753.11,0.00019753,2]
[359811569,1746358064136,-450.0,0.00019726,2]
[359811570,1746358064151,-450.0,0.00019753,2]
[359811571,1746358064162,-973.65,0.00019753,2]
[359811572,1746358064173,-450.0,0.00019753,2]
[359811573,1746358064207,-35787.50512315,0.00019753,2]
[359811574,1746358064237,-783.92,0.00019753,2]
[359811575,1746358064267,-450.0,0.00019753,2]
[359811576,1746358064296,-450.0,0.00019753,2]
[359811577,1746358064546,-3577.13,0.00019753,2]
[359811578,1746358064575,-530.28,0.00019753,2]
[359811579,1746358064604,-647.11,0.00019753,2]
[359811580,1746358064631,-450.0,0.00019753,2]
[359811581,1746358064658,-450.0,0.00019753,2]
[359811582,1746358064686,-207.48,0.00019753,2]
[359811583,1746358064714,-450.0,0.00019753,2]
[359811584,1746358064743,-455.58,0.00019753,2]
[359811585,1746358064770,-2136.4,0.00019753,2]
[359811586,1746358064797,-450.0,0.00019753,2]
[359811587,1746358064824,-450.0,0.00019753,2]
[359811588,1746358064850,-450.0,0.00019753,2]
[359811589,1746358064879,-10062.95,0.00019753,2]
[359811590,1746358064909,-450.0,0.00019753,2]
[359811591,1746358064938,-490.96,0.00019753,2]
[359811592,1746358064967,-173.05,0.00019753,2]
[359811593,1746358064996,-346.96,0.00019753,2]
[359811594,1746358065024,-450.0,0.00019753,2]
[359811595,1746358065052,-450.0,0.00019753,2]
[359811596,1746358065081,-154.03,0.00019753,2]
[359811597,1746358065110,-450.0,0.00019753,2]
[359811598,1746358065138,-674.36,0.00019753,2]
[359811599,1746358065165,-450.0,0.00019753,2]
[359811600,1746358065193,-450.0,0.00019753,2]
[359811601,1746358065219,-165.68722518,0.00019753,2]
[359811602,1746358065246,-450.0,0.00019753,2]
[359811603,1746358065272,-450.0,0.00019753,2]
[359811604,1746358065299,-450.0,0.00019753,2]
[359811605,1746358065326,-6082.93,0.00019753,2]
[359811606,1746358065355,-450.0,0.00019753,2]
[359811607,1746358065382,-255.01362017,0.00019753,2]
[359811608,1746358065408,-450.0,0.00019753,2]
[359811609,1746358065435,-450.0,0.00019753,2]
[359811610,1746358065464,-1221.49,0.00019753,2]
[359811611,1746358065491,-206.32,0.00019753,2]
[359811612,1746358065518,-522.62,0.00019753,2]
[359811613,1746358065548,-3220.12,0.00019753,2]
[359811614,1746358065576,-450.0,0.00019753,2]
[359811615,1746358065604,-450.0,0.00019753,2]
[359811616,1746358065631,-731.21,0.00019753,2]
[359811617,1746358065658,-450.0,0.00019753,2]
[359811618,1746358065684,-450.0,0.00019753,2]
[359811619,1746358065710,-450.0,0.00019753,2]
[359811620,1746358065737,-572.6,0.00019753,2]
[359811621,1746358065765,-450.0,0.00019753,2]
[359811622,1746358065793,-450.0,0.00019753,2]
[359811623,1746358065819,-450.0,0.00019753,2]
[359811624,1746358065844,-450.0,0.00019753,2]
[359811625,1746358065871,-450.0,0.00019753,2]
[359811626,1746358065899,-450.0,0.00019753,2]
[359811627,1746358065927,-450.0,0.00019753,2]
[359811628,1746358065953,-450.0,0.00019753,2]
[359811629,1746358065980,-450.0,0.00019753,2]
[359811630,1746358066006,-450.0,0.00019753,2]
[359811631,1746358066032,-450.0,0.00019753,2]
[359811632,1746358066061,-62011.91,0.00019753,2]
[359811633,1746358066087,-450.0,0.00019753,2]
[359811634,1746358066115,-2440.62,0.00019753,2]
[359811635,1746358066142,-450.0,0.00019753,2]
[359811636,1746358066172,-450.0,0.00019753,2]
[359811637,1746358066197,-450.0,0.00019753,2]
[359811638,1746358066227,-450.0,0.00019753,2]
[359811639,1746358066254,-450.0,0.00019753,2]
[359811640,1746358066282,-450.0,0.00019753,2]
[359811641,1746358066310,-450.0,0.00019753,2]
[359811642,1746358066336,-450.0,0.00019753,2]
[359811643,1746358066363,-450.0,0.00019753,2]
[359811644,1746358066390,-500.35,0.00019753,2]
[359811645,1746358066418,-450.0,0.00019753,2]
[359811646,1746358066445,-450.0,0.00019753,2]
[359811647,1746358066472,-356.828063,0.00019753,2]
[359811648,1746358066485,-145.241937,0.00019753,2]
[359811649,1746358066495,-304.758063,0.00019753,2]
[359811650,1746358066506,-145.241937,0.00019753,2]
[359811651,1746358066516,-304.758063,0.00019753,2]
[359811652,1746358066528,-242.461937,0.00019753,2]
[359811653,1746358066537,-1114.96,0.00019753,2]
[359811654,1746358066546,-346.99,0.00019753,2]
[359811655,1746358066555,-776.448063,0.00019753,2]
[359811656,1746358066567,-68.341937,0.00019753,2]
[359811657,1746358066576,-381.658063,0.00019753,2]
[359811658,1746358066588,-68.341937,0.00019753,2]
[359811659,1746358066597,-447.218063,0.00019753,2]
[359811660,1746358066609,-2.781937,0.00019753,2]
[359811661,1746358066619,-447.218063,0.00019753,2]
[359811662,1746358066631,-62.351937,0.00019753,2]
[359811663,1746358066641,-387.648063,0.00019753,2]
[359811664,1746358066652,-62.351937,0.00019753,2]
[359811665,1746358066698,-387.648063,0.00019753,2]
[359811666,1746358066710,-62.351937,0.00019753,2]
[359811667,1746358066719,-183.4922146,0.00019753,2]
[359811668,1746358066728,-228.3158484,0.00019753,2]
[359811669,1746358066738,-221.6841516,0.00019753,2]
[359811670,1746358066747,-228.3158484,0.00019753,2]
[359811671,1746358066758,-221.6841516,0.00019753,2]
[359811672,1746358066768,-228.3158484,0.00019753,2]
[359811673,1746358066782,-278.4941516,0.00019753,2]
[359811674,1746358066791,-450.0,0.00019753,2]
[359811675,1746358066800,-618.61,0.00019753,2]
[359811676,1746358066809,-450.0,0.00019753,2]
[359811677,1746358066818,-11.6558484,0.00019753,2]
[359811678,1746358066830,-438.3441516,0.00019753,2]
[359811679,1746358066838,-11.6558484,0.00019753,2]
[359811680,1746358066849,-438.3441516,0.00019753,2]
[359811681,1746358066859,-139.2158484,0.00019753,2]
[359811682,1746358066870,-310.7841516,0.00019753,2]
[359811683,1746358066880,-139.2158484,0.00019756,2]
[359811684,1746358066892,-60.1201919,0.00019756,2]
[359811685,1746358066901,-157.17887803,0.00019763,2]
[359811686,1746358066910,-232.70093007,0.0001977,2]
[359811687,1746358066922,-34.72811505,0.0001977,2]
[359811688,1746358066931,-200.0,0.00019772,2]
[359811689,1746358066940,-215.27188495,0.00019773,2]
[359811690,1746358066951,-284.72811505,0.00019773,2]
[359811691,1746358066960,-165.27188495,0.00019773,2]
[359811692,1746358066971,-348.20943925,0.00019773,2]
[359811693,1746358066980,-101.79056075,0.00019773,2]
[359811694,1746358066991,-403.48847425,0.00019773,2]
[359811695,1746358067000,-46.51152575,0.00019773,2]
[359811696,1746358067011,-118.50885379,0.00019773,2]
[359811697,1746358067020,-500.0,0.00019773,2]
[359811698,1746358067028,-162.22114621,0.00019773,2]
[359811699,1746358067039,-5.09018282,0.00019773,2]
[359811700,1746358067049,-444.90981718,0.00019773,2]
[359811701,1746358067060,-55.09018282,0.00019773,2]
[359811702,1746358067069,-500.8271587,0.00019773,2]
[359811703,1746358067078,-12.28265848,0.00019773,2]
[359811704,1746358067090,-450.0,0.00019773,2]
[359811705,1746358067104,-37.71734152,0.00019773,2]
[359811706,1746358067114,-412.28265848,0.00019773,2]
[359811707,1746358067125,-87.71734152,0.00019773,2]
[359811708,1746358067133,-362.28265848,0.00019773,2]
[359811709,1746358067145,-137.71734152,0.00019773,2]
[359811710,1746358067154,-161.06774323,0.00019773,2]
[359811711,1746358067163,-151.21491525,0.00019773,2]
[359811712,1746358067174,-450.0,0.00019773,2]
[359811713,1746358067184,-7.42131662,0.00019773,2]
[359811714,1746358067193,-442.57868338,0.00019773,2]
[359811715,1746358067204,-57.42131662,0.00019773,2]
[359811716,1746358067213,-163.05753432,0.00019773,2]
[359811717,1746358067222,-161.57998144,0.00019773,2]
[359811718,1746358067231,-182.37048853,0.00019773,2]
[359811719,1746358067240,-18.41067909,0.00019773,2]
[359811720,1746358067251,-450.0,0.00019773,2]
[359811721,1746358067262,-31.58932091,0.00019773,2]
[359811722,1746358067271,-418.41067909,0.00019773,2]
[359811723,1746358067282,-81.58932091,0.00019773,2]
[359811724,1746358067291,-368.41067909,0.00019778,2]
[359811725,1746358067302,-450.0,0.00019778,2]
[359811726,1746358067313,-536.9,0.00019778,2]
[359811727,1746358067325,-388.06468874,0.00019778,2]
[359811728,1746358067333,-61.93531126,0.00019778,2]
[359811729,1746358067356,-450.0,0.00019778,2]
[359811730,1746358067367,-450.0,0.00019778,2]
[359811731,1746358067382,-925.66,0.00019778,2]
[359811732,1746358067397,-450.0,0.00019778,2]
[359811733,1746358067408,-450.0,0.00019778,2]
[359811734,1746358067419,-49.24169336,0.00019778,2]
[359811735,1746358067428,-400.75830664,0.00019779,2]
[359811736,1746358067440,-99.24169336,0.00019779,2]
[359811737,1746358067449,-350.75830664,0.0001978,2]
[359811738,1746358067461,-99.24169336,0.0001978,2]
[359811739,1746358067470,-859.36,0.0001978,2]
[359811740,1746358067480,-450.0,0.0001978,2]
[359811741,1746358067489,-450.0,0.0001978,2]
[359811742,1746358067498,-162.10830664,0.0001978,2]
[359811743,1746358067510,-287.89169336,0.0001978,2]
[359811744,1746358067520,-162.10830664,0.0001978,2]
[359811745,1746358067532,-287.89169336,0.0001978,2]
[359811746,1746358067541,-162.10830664,0.0001978,2]
[359811747,1746358067553,-287.89169336,0.0001978,2]
[359811748,1746358067562,-162.10830664,0.0001978,2]
[359811749,1746358067574,-206.23173074,0.0001978,2]
[359811750,1746358067794,-81.65996262,0.0001978,2]
[359811751,1746358067804,-368.34003738,0.0001978,2]
[359811752,1746358067815,-92.92040516,0.0001978,2]
[359811753,1746358067824,-357.07959484,0.0001978,2]
[359811754,1746358067834,-92.92040516,0.0001978,2]
[359811755,1746358067843,-440.47959484,0.0001978,2]
[359811756,1746358067854,-9.52040516,0.0001978,2]
[359811757,1746358067863,-450.0,0.0001978,2]
[359811758,1746358067871,-40.47959484,0.0001978,2]
[359811759,1746358067886,-409.52040516,0.0001978,2]
[359811760,1746358067895,-450.0,0.0001978,2]
[359811761,1746358067903,-450.0,0.0001978,2]
[359811762,1746358067913,-339.3,0.0001978,2]
[359811763,1746358067923,-450.0,0.0001978,2]
[359811764,1746358067932,-472.93,0.0001978,2]
[359811765,1746358067941,-450.0,0.0001978,2]
[359811766,1746358067950,-450.0,0.0001978,2]
[359811767,1746358067962,-450.0,0.0001978,2]
[359811768,1746358067972,-584.66,0.0001978,2]
[359811769,1746358067980,-450.0,0.0001978,2]
[359811770,1746358067990,-450.0,0.0001978,2]
[359811771,1746358067998,-450.0,0.0001978,2]
[359811772,1746358068008,-365.66915787,0.0001978,2]
[359811773,1746358068017,-450.0,0.0001978,2]
[359811774,1746358068027,-228.74378712,0.0001978,2]
[359811775,1746358068036,-450.0,0.0001978,2]
[359811776,1746358068046,-450.0,0.0001978,2]
[359811777,1746358068055,-450.0,0.0001978,2]
[359811778,1746358068064,-450.0,0.0001978,2]
[359811779,1746358068073,-450.0,0.0001978,2]
[359811780,1746358068083,-450.0,0.0001978,2]
[359811781,1746358068092,-450.0,0.0001978,2]
[359811782,1746358068102,-864.65,0.0001978,2]
[359811783,1746358068112,-267.16,0.0001978,2]
[359811784,1746358068123,-373.98,0.0001978,2]
[359811785,1746358068132,-450.0,0.0001978,2]
[359811786,1746358068142,-450.0,0.0001978,2]
[359811787,1746358068151,-450.0,0.0001978,2]
[359811788,1746358068162,-610.76,0.0001978,2]
[359811789,1746358068172,-450.0,0.0001978,2]
[359811790,1746358068182,-450.0,0.0001978,2]
[359811791,1746358068191,-450.0,0.0001978,2]
[359811792,1746358068200,-450.0,0.0001978,2]
[359811793,1746358068210,-450.0,0.0001978,2]
[359811794,1746358068219,-537.07,0.0001978,2]
[359811795,1746358068228,-450.0,0.0001978,2]
[359811796,1746358068238,-450.0,0.0001978,2]
[359811797,1746358068247,-450.0,0.0001978,2]
[359811798,1746358068256,-450.0,0.0001978,2]
[359811799,1746358068265,-450.0,0.0001978,2]
[359811800,1746358068275,-450.0,0.0001978,2]
[359811801,1746358068284,-450.0,0.0001978,2]
[359811802,1746358068293,-727.75,0.0001978,2]
[359811803,1746358068303,-450.0,0.0001978,2]
[359811804,1746358068313,-450.0,0.0001978,2]
[359811805,1746358068324,-450.0,0.0001978,2]
[359811806,1746358068334,-450.0,0.0001978,2]
[359811807,1746358068343,-450.0,0.0001978,2]
[359811808,1746358068352,-450.0,0.0001978,2]
[359811809,1746358068362,-450.0,0.0001978,2]
[359811810,1746358068371,-450.0,0.0001978,2]
[359811811,1746358068381,-2263.33,0.0001978,2]
[359811812,1746358068390,-450.0,0.0001978,2]
[359811813,1746358068399,-1348.23,0.0001978,2]
[359811814,1746358068409,-450.0,0.0001978,2]
[359811815,1746358068418,-450.0,0.0001978,2]
[359811816,1746358068428,-644.29,0.0001978,2]
[359811817,1746358068437,-450.0,0.0001978,2]
[359811818,1746358068447,-450.0,0.0001978,2]
[359811819,1746358068457,-1310.44,0.0001978,2]
[359811820,1746358068466,-245.86631648,0.0001978,2]
[359811821,1746358068475,-450.0,0.0001978,2]
[359811822,1746358068485,-494.34,0.0001978,2]
[359811823,1746358068495,-450.0,0.0001978,2]
[359811824,1746358068504,-450.0,0.0001978,2]
[359811825,1746358068515,-450.0,0.0001978,2]
[359811826,1746358068525,-2381.14,0.0001978,2]
[359811827,1746358068536,-450.0,0.0001978,2]
[359811828,1746358068546,-716.18,0.0001978,2]
[359811829,1746358068556,-450.0,0.0001978,2]
[359811830,1746358068566,-753.11,0.0001978,2]
[359811831,1746358068576,-973.65,0.0001978,2]
[359811832,1746358068585,-1992.17033337,0.0001978,2]
[359811833,1746358068597,-450.0,0.0001978,2]
[359811834,1746358068609,-38.68966663,0.0001978,2]
[359811835,1746358068620,-411.31033337,0.0001978,2]
[359811836,1746358068631,-38.68966663,0.0001978,2]
[359811837,1746358068641,-161.89346647,0.0001978,2]
[359811838,1746358068653,-783.92,0.0001978,2]
[359811839,1746358068664,-450.0,0.0001978,2]
[359811840,1746358068676,-255.06185586,0.0001978,2]
[359811841,1746358068689,-157.88467767,0.0001978,2]
[359811842,1746358068698,-292.11532233,0.0001978,2]
[359811843,1746358068710,-157.88467767,0.0001978,2]
[359811844,1746358068720,-126.14215041,0.0001978,2]
[359811845,1746358068731,-450.0,0.0001978,2]
[359811846,1746358068742,-204.58784959,0.0001978,2]
[359811847,1746358068753,-245.41215041,0.0001978,2]
[359811848,1746358068764,-204.58784959,0.0001978,2]
[359811849,1746358068774,-245.41215041,0.0001978,2]
[359811850,1746358068786,-204.58784959,0.0001978,2]
[359811851,1746358068795,-582.84,0.0001978,2]
[359811852,1746358068804,-450.0,0.0001978,2]
[359811853,1746358068814,-925.66,0.0001978,2]
[359811854,1746358068823,-450.0,0.0001978,2]
[359811855,1746358068832,-450.0,0.0001978,2]
[359811856,1746358068841,-450.0,0.0001978,2]
[359811857,1746358068850,-64.04215041,0.0001978,2]
[359811858,1746358068861,-529.23813781,0.0001978,2]
[359811859,1746358068872,-511.97250402,0.0001978,2]
[359811860,1746358068886,-450.0,0.0001978,2]
[359811861,1746358068897,-465.45720776,0.0001978,2]
[359811862,1746358068907,-34.54279224,0.0001978,2]
[359811863,1746358068918,-415.45720776,0.0001978,2]
[359811864,1746358068928,-34.54279224,0.0001978,2]
[359811865,1746358068939,-415.45720776,0.0001978,2]
[359811866,1746358068949,-114.82279224,0.0001978,2]
[359811867,1746358068961,-335.17720776,0.0001978,2]
[359811868,1746358068970,-311.93279224,0.0001978,2]
[359811869,1746358069009,-450.0,0.0001978,2]
[359811870,1746358069020,-450.0,0.0001978,2]
[359811871,1746358069031,-450.0,0.0001978,2]
[359811872,1746358069043,-150.0,0.0001978,2]
[359811873,1746358069055,-450.0,0.0001978,2]
[359811874,1746358069067,-450.0,0.0001978,2]
[359811875,1746358069078,-450.0,0.0001978,2]
[359811876,1746358069123,-450.0,0.0001978,2]
[359811877,1746358069194,-38243.00720776,0.0001978,2]
[359811878,1746358069222,-783.92,0.0001978,2]
[359811879,1746358069252,-450.0,0.0001978,2]
[359811880,1746358069282,-450.0,0.0001978,2]
[359811881,1746358069311,-3577.13,0.0001978,2]
[359811882,1746358069339,-530.28,0.0001978,2]
[359811883,1746358069377,-647.11,0.0001978,2]
[359811884,1746358069405,-450.0,0.0001978,2]
[359811885,1746358069434,-408.97,0.0001978,2]
[359811886,1746358069464,-450.0,0.0001978,2]
[359811887,1746358069493,-2136.4,0.0001978,2]
[359811888,1746358069523,-541.51331515,0.0001978,2]
[359811889,1746358069552,-450.0,0.0001978,2]
[359811890,1746358069580,-10062.95,0.0001978,2]
[359811891,1746358069610,-450.0,0.0001978,2]
[359811892,1746358069638,-450.0,0.0001978,2]
[359811893,1746358069666,-450.0,0.0001978,2]
[359811894,1746358069694,-450.0,0.0001978,2]
[359811895,1746358069722,-674.36,0.0001978,2]
[359811896,1746358069750,-450.0,0.0001978,2]
[359811897,1746358069778,-450.0,0.0001978,2]
[359811898,1746358069805,-450.0,0.0001978,2]
[359811899,1746358069834,-6082.93,0.0001978,2]
[359811900,1746358069862,-450.0,0.0001978,2]
[359811901,1746358069893,-577.63,0.0001978,2]
[359811902,1746358069923,-1221.49,0.0001978,2]
[359811903,1746358069953,-3220.12,0.0001978,2]
[359811904,1746358069981,-261.18,0.0001978,2]
[359811905,1746358070007,-731.21,0.0001978,2]
[359811906,1746358070035,-450.0,0.0001978,2]
[359811907,1746358070062,-450.0,0.0001978,2]
[359811908,1746358070089,-450.0,0.0001978,2]
[359811909,1746358070118,-450.0,0.0001978,2]
[359811910,1746358070146,-62011.91,0.0001978,2]
[359811911,1746358070175,-2440.62,0.0001978,2]
[359811912,1746358070201,-450.0,0.0001978,2]
[359811913,1746358070228,-450.0,0.0001978,2]
[359811914,1746358070257,-450.0,0.0001978,2]
[359811915,1746358070283,-450.0,0.0001978,2]
[359811916,1746358070310,-500.35,0.0001978,2]
[359811917,1746358070338,-450.0,0.0001978,2]
[359811918,1746358070367,-547.22,0.0001978,2]
[359811919,1746358070394,-1114.96,0.0001978,2]
[359811920,1746358070421,-844.79,0.0001978,2]
[359811921,1746358070448,-450.0,0.0001978,2]
[359811922,1746358070475,-450.0,0.0001978,2]
[359811923,1746358070503,-426.34219859,0.0001978,2]
[359811924,1746358070531,-450.0,0.0001978,2]
[359811925,1746358070559,-618.61,0.0001978,2]
[359811926,1746358070587,-450.0,0.0001978,2]
[359811927,1746358070616,-450.0,0.0001978,2]
[359811928,1746358070643,-267.42904511,0.00019792,2]
[359811929,1746358070670,-157.17887803,0.00019797,2]
[359811930,1746358070697,-225.7500968,0.00019799,2]
[359811931,1746358070723,-199.3360403,0.00019804,2]
[359811932,1746358070749,-450.0,0.00019808,2]
[359811933,1746358070776,-859.36,0.00019808,2]
[359811934,1746358070804,-427.91,0.00019808,2]
[359811935,1746358070831,-192.84,0.00019808,2]
[359811936,1746358070859,-450.0,0.00019808,2]
[359811937,1746358070889,-450.0,0.00019808,2]
[359811938,1746358070919,-530.94,0.00019808,2]
[359811939,1746358070949,-450.0,0.00019808,2]
[359811940,1746358070979,-450.0,0.00019808,2]
[359811941,1746358071008,-450.0,0.00019808,2]
[359811942,1746358071043,-450.0,0.00019808,2]
[359811943,1746358071083,-450.0,0.00019808,2]
[359811944,1746358071095,-450.0,0.00019808,2]
[359811945,1746358071112,-450.0,0.00019808,2]
[359811946,1746358071124,-472.93,0.00019808,2]